bitfinex-derivatives/quotes_SOLF0:USTF0_20250730
["timestamp","ask_amount","ask_price","bid_price","bid_amount"]
[1753870110551,2.97,179.48,179.41,310.18570333]
[1753870110746,2.97,179.48,179.42,3.25]
[1753870111150,2.97,179.47,179.44,5.5728]
[1753870111352,2.97,179.49,179.45,3.25]
[1753870111555,2.77209635,179.48,179.42,3.25]
[1753870111756,2.97,179.44,179.43,3.25]
[1753870111953,2.97,179.43,179.42,3.25]
[1753870112155,2.97,179.42,179.41,105.17]
[1753870112361,2.97,179.4,179.37,102.12]
[1753870112562,2.97,179.4,179.39,3.25]
[1753870113256,2.97,179.4,179.34,3.25]
[1753870113460,8.5447,179.39,179.36,5.5753]
[1753870113763,5.74209635,179.41,179.34,3.25]
[1753870113964,8.5432,179.43,179.39,5.5742]
[1753870114164,2.97,179.42,179.4,3.25]
[1753870114554,2.97,179.41,179.37,102.16]
[1753870114754,2.77209635,179.42,179.38,3.25]
[1753870114755,2.97,179.39,179.38,3.25]
[1753870115161,2.97,179.44,179.38,3.25]
[1753870115768,2.97,179.46,179.39,5.5743]
[1753870115971,2.97,179.44,179.41,3.25]
[1753870116367,8.5434,179.43,179.41,3.25]
[1753870116567,2.97,179.42,179.41,3.25]
[1753870118166,2.97,179.43,179.42,3.25]
[1753870118571,5.5731,179.44,179.41,5.5738]
[1753870118872,2.97,179.45,179.4,3.25]
[1753870119069,2.97,179.47,179.45,3.25]
[1753870119268,2.97,179.47,179.46,3.25]
[1753870119872,8.5414,179.49,179.48,3.25]
[1753870120074,12.83531077,179.49,179.48,3.25]
[1753870120876,7.26391077,179.49,179.48,3.25]
[1753870121169,2.77209635,179.55,179.48,3.25]
[1753870121368,4.29277567,179.54,179.48,3.25]
[1753870121575,5.57,179.54,179.48,3.25]
[1753870121770,5.74209635,179.55,179.48,3.25]
[1753870121981,8.5395,179.55,179.48,3.25]
[1753870122573,8.5395,179.55,179.51,5.5705]
[1753870122769,5.74209635,179.59,179.49,2.77209635]
[1753870122973,4.29304951,179.58,179.52,3.25]
[1753870123168,8.5383,179.59,179.52,3.25]
[1753870123770,8.5385,179.58,179.55,3.25]
[1753870124377,2.97,179.58,179.55,3.25]
[1753870124766,2.97,179.59,179.57,3.25]
[1753870125773,2.77209635,179.61,179.58,3.25]
[1753870125980,4.29598395,179.6,179.59,3.25]
[1753870126277,5.5679,179.61,179.56,3.25]
[1753870126773,5.5675,179.62,179.58,3.25]
[1753870126976,8.5375,179.62,179.58,3.25]
[1753870127166,2.97,179.62,179.58,3.25]
[1753870127372,5.5677,179.61,179.58,3.25]
[1753870128176,8.5377,179.61,179.58,3.25]
[1753870128877,5.5679,179.6,179.59,3.25]
[1753870129168,2.97,179.61,179.59,3.25]
[1753870129383,2.97,179.61,179.6,3.25]
[1753870129575,8.5377,179.61,179.6,3.25]
[1753870130474,5.5673,179.62,179.61,3.25]
[1753870130676,2.97,179.63,179.57,2.77209635]
[1753870130869,2.97,179.63,179.62,3.25]
[1753870131076,2.97,179.63,179.57,2.77209635]
[1753870131077,2.97,179.64,179.63,3.25]
[1753870131272,7.25976503,179.64,179.63,3.25]
[1753870131583,12.82646503,179.64,179.63,3.25]
[1753870131781,4.28976503,179.64,179.63,3.25]
[1753870132077,7.4078899,179.68,179.63,3.25]
[1753870132078,3.22,179.66,179.63,3.25]
[1753870132491,5.5664,179.65,179.63,3.25]
[1753870133378,5.5667,179.64,179.63,3.25]
[1753870135676,5.5664,179.65,179.63,3.25]
[1753870135881,8.7864,179.65,179.63,3.25]
[1753870136684,3.22,179.64,179.63,3.25]
[1753870136878,5.5664,179.65,179.61,2.77209635]
[1753870137078,8.7861,179.66,179.62,3.12]
[1753870137784,4.63579355,179.73,179.61,2.77209635]
[1753870138086,3.22,179.7,179.64,3.12]
[1753870138484,3.22,179.7,179.65,3.12]
[1753870138687,2.77209635,179.7,179.5,27.8516]
[1753870138880,7.51071703,179.69,179.62,3.12]
[1753870139085,3.22,179.68,179.64,3.12]
[1753870139487,3.22,179.68,179.64,8.6865]
[1753870139786,3.22,179.68,179.65,3.12]
[1753870140283,3.22,179.67,179.63,2.77209635]
[1753870140477,3.22,179.66,179.65,3.12]
[1753870141786,3.22,179.68,179.64,3.12]
[1753870142177,2.77209635,179.7,179.64,3.12]
[1753870142379,3.22,179.67,179.64,3.12]
[1753870142580,3.22,179.67,179.63,2.77209635]
[1753870142781,3.22,179.66,179.65,3.12]
[1753870143485,3.22,179.68,179.65,3.12]
[1753870144289,8.7855,179.68,179.65,3.12]
[1753870144789,3.22,179.68,179.65,3.12]
[1753870145388,3.22,179.67,179.66,3.12]
[1753870145983,3.22,179.68,179.67,3.12]
[1753870146381,3.22,179.69,179.68,3.12]
[1753870146586,3.22,179.71,179.68,3.12]
[1753870146785,3.22,179.7,179.69,3.12]
[1753870146986,8.7848,179.7,179.69,3.12]
[1753870149292,5.5652,179.69,179.67,3.12]
[1753870149491,8.7852,179.69,179.68,3.12]
[1753870150387,2.77209635,179.71,179.65,3.12]
[1753870150587,3.22,179.66,179.65,3.12]
[1753870150786,2.77209635,179.71,179.65,8.6863]
[1753870150981,3.22,179.7,179.66,3.12]
[1753870151491,3.22,179.7,179.65,5.5663]
[1753870151492,3.22,179.68,179.67,3.12]
[1753870152589,8.7854,179.68,179.67,3.12]
[1753870153488,3.22,179.66,179.65,3.12]
[1753870153688,3.22,179.66,179.62,3.12]
[1753870154285,2.77209635,179.73,179.61,3.12]
[1753870154490,3.22,179.62,179.55,3.12]
[1753870154690,2.77209635,179.61,179.55,3.12]
[1753870154990,3.22,179.58,179.57,3.12]
[1753870155195,3.22,179.62,179.57,3.12]
[1753870155489,3.22,179.62,179.59,3.12]
[1753870155792,3.22,179.61,179.6,3.12]
[1753870155993,8.7876,179.61,179.6,3.12]
[1753870156796,5.5676,179.61,179.6,3.12]
[1753870158296,8.7876,179.61,179.6,3.12]
[1753870158995,2.77209635,179.63,179.6,3.12]
[1753870158996,5.5674,179.62,179.6,3.12]
[1753870159196,8.7874,179.62,179.61,3.12]
[1753870162800,5.5674,179.62,179.61,3.12]
[1753870163297,8.8374,179.62,179.61,3.12]
[1753870163489,13.11100074,179.62,179.61,3.12]
[1753870165300,17.93416857,179.62,179.61,3.12]
[1753870166299,22.12248207,179.62,179.61,3.12]
[1753870167100,17.93445925,179.62,179.61,3.12]
[1753870168199,5.5682,179.6,179.59,3.18]
[1753870168398,13.11180074,179.6,179.59,3.18]
[1753870169099,3.27,179.58,179.48,405.42]
[1753870169299,4.2900033,179.57,179.5,2.77209635]
[1753870169497,3.27,179.56,179.5,2.77209635]
[1753870169699,5.5697,179.55,179.52,5.5702]
[1753870170003,3.27,179.56,179.53,3.18]
[1753870170200,6.04209635,179.58,179.54,3.18]
[1753870170505,4.29049421,179.57,179.54,3.18]
[1753870170706,3.27,179.6,179.54,2.77209635]
[1753870170902,4.29119709,179.59,179.56,2.77209635]
[1753870171102,3.27,179.62,179.57,3.18]
[1753870171309,4.29148275,179.61,179.59,3.18]
[1753870171508,4.29148275,179.6,179.59,3.18]
[1753870171710,8.8375,179.62,179.59,5.5681]
[1753870171711,4.29148275,179.61,179.59,5.5681]
[1753870172010,4.29148275,179.6,179.59,5.5681]
[1753870172509,4.29148275,179.61,179.59,5.5681]
[1753870172899,4.29148275,179.61,179.6,3.18]
[1753870173409,9.85908275,179.61,179.6,3.18]
[1753870173710,4.29148275,179.61,179.6,3.18]
[1753870174308,8.8369,179.64,179.61,5.5676]
[1753870174504,4.29228408,179.63,179.62,3.18]
[1753870174909,13.12928408,179.63,179.62,3.18]
[1753870175107,13.12928408,179.63,179.59,5.5681]
[1753870175108,3.27,179.62,179.6,3.18]
[1753870175309,7.40950961,179.66,179.6,3.18]
[1753870175511,5.5671,179.63,179.59,5.5681]
[1753870175704,4.29241913,179.62,179.61,3.18]
[1753870176302,3.27,179.65,179.61,3.18]
[1753870176507,4.29226725,179.64,179.61,3.18]
[1753870176700,4.29226725,179.63,179.61,3.18]
[1753870176901,8.8365,179.65,179.63,3.18]
[1753870177107,4.29246322,179.64,179.63,3.18]
[1753870177609,5.5661,179.66,179.63,8.747]
[1753870177913,4.29317436,179.65,179.64,3.18]
[1753870178709,3.27,179.67,179.65,3.18]
[1753870179015,2.77209635,179.7,179.65,3.18]
[1753870179213,8.8356,179.68,179.66,3.18]
[1753870179414,4.29394826,179.67,179.66,3.18]
[1753870180418,4.29394826,179.67,179.63,3.18]
[1753870180611,2.77209635,179.69,179.62,3.18]
[1753870180908,5.5667,179.64,179.61,5.5675]
[1753870181114,3.27,179.63,179.61,8.7475]
[1753870181314,3.27,179.63,179.61,3.18]
[1753870181510,8.8371,179.63,179.61,3.18]
[1753870181814,3.27,179.62,179.61,3.18]
[1753870182115,3.27,179.62,179.61,8.7476]
[1753870182313,3.27,179.62,179.61,3.18]
[1753870182813,2.77209635,179.67,179.6,5.5677]
[1753870183015,3.27,179.63,179.62,3.18]
[1753870183817,3.27,179.62,179.61,3.18]
[1753870184114,3.27,179.64,179.58,3.18]
[1753870184517,8.8378,179.61,179.59,3.18]
[1753870184708,8.8378,179.61,179.6,3.18]
[1753870185718,3.27,179.61,179.56,104.81209635]
[1753870186018,3.27,179.62,179.57,3.18]
[1753870186406,2.77209635,179.63,179.56,102.04]
[1753870186407,5.5684,179.59,179.58,3.18]
[1753870186607,8.8384,179.59,179.58,3.18]
[1753870186816,3.27,179.62,179.59,3.18]
[1753870187016,8.8376,179.61,179.6,3.18]
[1753870191821,3.27,179.61,179.6,8.7479]
[1753870192020,5.5674,179.62,179.6,5.5679]
[1753870192213,5.5674,179.62,179.61,3.2]
[1753870192214,8.5974,179.62,179.61,3.2]
[1753870192411,12.89757331,179.62,179.61,3.2]
[1753870192614,7.33017331,179.62,179.59,3.2]
[1753870192915,4.30203778,179.61,179.59,3.2]
[1753870193114,3.03,179.6,179.59,3.2]
[1753870193620,8.5981,179.6,179.59,3.2]
[1753870196417,4.63741326,179.65,179.59,3.2]
[1753870196622,4.30667207,179.64,179.59,3.2]
[1753870196826,4.30667207,179.63,179.59,3.2]
[1753870197122,4.30667207,179.63,179.61,5.5674]
[1753870197316,4.30667207,179.63,179.62,3.2]
[1753870199921,12.90367207,179.63,179.62,3.2]
[1753870200725,4.30667207,179.63,179.62,3.2]
[1753870202528,4.30667207,179.63,179.62,8.7673]
[1753870202725,4.30667207,179.64,179.6,2.77209635]
[1753870203022,4.30667207,179.63,179.62,5.5673]
[1753870203321,4.30667207,179.65,179.61,3.2]
[1753870203525,4.30667207,179.64,179.61,3.2]
[1753870203724,4.30667207,179.63,179.62,5.5673]
[1753870203923,4.30667207,179.63,179.62,3.2]
[1753870204128,3.03,179.62,179.61,3.2]
[1753870204520,4.63741326,179.67,179.58,2.77209635]
[1753870204716,3.03,179.63,179.62,3.2]
[1753870204921,7.33886139,179.63,179.62,3.2]
[1753870205222,3.03,179.62,179.6,8.7677]
[1753870205420,3.03,179.62,179.6,3.2]
[1753870205727,3.03,179.62,179.61,3.2]
[1753870206026,4.30872919,179.62,179.61,5.97209635]
[1753870206220,3.03,179.7,179.62,3.2]
[1753870206422,11.85747078,179.69,179.64,2.77209635]
[1753870206722,4.29205262,179.68,179.64,2.77209635]
[1753870206924,3.03,179.7,179.67,3.2]
[1753870207219,4.29206591,179.69,179.68,3.2]
[1753870207729,11.85389219,179.69,179.68,3.2]
[1753870208221,3.03,179.68,179.62,3.2]
[1753870208428,3.03,179.66,179.57,101.98]
[1753870208624,3.03,179.66,179.6,3.2]
[1753870208827,5.5665,179.65,179.61,5.5674]
[1753870209022,3.03,179.64,179.62,3.2]
[1753870209222,3.03,179.64,179.63,3.2]
[1753870210526,8.5962,179.66,179.6,2.77209635]
[1753870210727,8.5962,179.66,179.61,3.2]
[1753870210925,3.03,179.66,179.62,5.5671]
[1753870211133,3.03,179.68,179.62,5.5671]
[1753870211432,3.03,179.66,179.63,3.2]
[1753870211630,7.28039109,179.65,179.63,3.2]
[1753870211822,3.03,179.65,179.64,3.2]
[1753870212028,3.03,179.65,179.61,3.2]
[1753870212029,4.25039105,179.65,179.61,3.2]
[1753870212229,3.03,179.67,179.61,3.2]
[1753870212428,3.03,179.65,179.62,5.5672]
[1753870212825,3.03,179.65,179.64,3.2]
[1753870213030,7.28030019,179.65,179.64,3.2]
[1753870213232,12.84660019,179.65,179.62,5.5672]
[1753870213427,3.03,179.66,179.62,3.2]
[1753870213629,3.03,179.64,179.62,3.2]
[1753870213932,8.5968,179.64,179.61,8.7675]
[1753870214133,3.03,179.63,179.61,8.7675]
[1753870214433,3.03,179.62,179.61,3.2]
[1753870217138,3.03,179.61,179.6,3.2]
[1753870217541,5.5671,179.63,179.6,5.5679]
[1753870217744,8.5971,179.63,179.62,3.2]
[1753870218242,8.5971,179.63,179.6,5.5679]
[1753870218441,3.03,179.62,179.61,3.2]
[1753870219337,3.03,179.62,179.61,8.7676]
[1753870219741,3.03,179.62,179.61,3.2]
[1753870219937,5.5673,179.62,179.59,3.2]
[1753870220246,3.03,179.6,179.59,3.2]
[1753870220841,3.03,179.6,179.59,8.7681]
[1753870221743,3.2,179.62,179.6,3.22]
[1753870221936,3.2,179.62,179.61,3.22]
[1753870224243,3.2,179.62,179.61,8.7876]
[1753870224539,4.63741326,179.68,179.62,3.22]
[1753870224540,3.2,179.68,179.62,3.22]
[1753870224745,3.2,179.7,179.66,5.99209635]
[1753870225044,3.2,179.7,179.67,3.22]
[1753870225336,3.2,179.72,179.7,3.22]
[1753870225540,4.24316838,179.71,179.69,5.5649]
[1753870225742,7.40950961,179.75,179.69,5.5649]
[1753870225937,3.2,179.71,179.7,3.22]
[1753870226137,3.2,179.71,179.68,3.22]
[1753870226138,3.2,179.7,179.68,3.22]
[1753870226343,5.565,179.7,179.66,3.22]
[1753870226532,3.2,179.72,179.66,3.22]
[1753870226533,3.2,179.72,179.66,8.7859]
[1753870226736,7.44148598,179.71,179.67,3.22]
[1753870227043,3.2,179.74,179.68,2.77209635]
[1753870227244,7.44028244,179.73,179.69,3.22]
[1753870227442,7.44028244,179.72,179.69,3.22]
[1753870227642,3.2,179.72,179.69,3.22]
[1753870227843,8.7644,179.72,179.69,8.785]
[1753870228046,3.2,179.72,179.7,3.22]
[1753870228248,2.77209635,179.75,179.7,3.22]
[1753870228249,3.2,179.71,179.7,3.22]
[1753870228839,2.77209635,179.75,179.69,3.22]
[1753870229046,7.43846442,179.74,179.67,3.22]
[1753870229240,4.23846442,179.73,179.67,3.22]
[1753870229444,3.2,179.69,179.68,3.22]
[1753870230346,8.7651,179.69,179.68,3.22]
[1753870230741,3.2,179.69,179.68,3.22]
[1753870231543,3.2,179.74,179.68,3.22]
[1753870231743,3.2,179.71,179.68,3.22]
[1753870232039,8.7646,179.71,179.68,3.22]
[1753870232244,3.2,179.7,179.69,3.22]
[1753870232640,8.7648,179.7,179.69,3.22]
[1753870233546,5.5648,179.7,179.66,5.5659]
[1753870233844,3.2,179.68,179.67,3.22]
[1753870234353,3.2,179.72,179.68,3.22]
[1753870234550,3.2,179.69,179.68,3.22]
[1753870235252,8.7651,179.69,179.68,3.22]
[1753870236351,3.2,179.69,179.68,3.22]
[1753870236743,5.5649,179.7,179.67,5.5657]
[1753870236947,8.7649,179.7,179.69,3.22]
[1753870238152,3.2,179.7,179.69,3.22]
[1753870239947,8.7648,179.7,179.69,3.22]
[1753870240858,8.7648,179.7,179.67,5.5656]
[1753870241053,3.2,179.69,179.68,3.22]
[1753870241449,8.7651,179.69,179.66,5.5659]
[1753870241754,3.2,179.67,179.66,3.22]
[1753870242857,3.2,179.67,179.66,8.786]
[1753870243249,3.2,179.67,179.66,3.22]
[1753870244252,3.2,179.69,179.67,3.22]
[1753870244454,3.2,179.69,179.65,3.22]
[1753870244857,3.2,179.69,179.66,5.5658]
[1753870245170,3.2,179.69,179.67,3.22]
[1753870245347,3.2,179.69,179.67,8.7855]
[1753870245547,2.77209635,179.73,179.67,3.22]
[1753870245753,7.43165353,179.72,179.67,3.22]
[1753870245947,3.2,179.75,179.68,3.22]
[1753870246163,4.23206058,179.74,179.68,3.22]
[1753870246351,3.2,179.75,179.68,3.22]
[1753870246552,8.7639,179.73,179.71,3.22]
[1753870246754,8.7639,179.73,179.72,3.22]
[1753870247657,5.5636,179.74,179.72,3.22]
[1753870247862,8.7636,179.74,179.73,3.22]
[1753870248161,12.98892218,179.74,179.73,3.22]
[1753870248559,9.78892218,179.74,179.7,5.5647]
[1753870248765,3.2,179.73,179.72,3.22]
[1753870249057,3.2,179.72,179.66,3.22]
[1753870249760,8.7644,179.72,179.66,3.22]
[1753870250457,5.5641,179.73,179.67,2.77209635]
[1753870250661,8.7641,179.73,179.68,3.22]
[1753870251155,3.2,179.77,179.71,3.22]
[1753870251351,4.22759297,179.76,179.71,3.22]
[1753870251556,3.02,179.79,179.71,3.22]
[1753870251756,9.79043913,179.78,179.74,5.5633]
[1753870251954,4.22803913,179.77,179.75,3.22]
[1753870252356,3.02,179.76,179.75,3.22]
[1753870252661,3.02,179.77,179.76,3.22]
[1753870252860,3.02,179.8,179.76,5.99209635]
[1753870253161,3.02,179.82,179.77,3.22]
[1753870253356,5.562,179.79,179.77,3.22]
[1753870253660,3.02,179.8,179.77,3.22]
[1753870254458,8.5818,179.8,179.77,3.22]
[1753870255058,410.05741326,179.86,179.64,2.77209635]
[1753870255059,3.02,179.79,179.74,2.77209635]
[1753870255256,3.02,179.79,179.75,3.22]
[1753870255862,3.02,179.79,179.74,5.5635]
[1753870255863,3.02,179.79,179.76,3.22]
[1753870256263,5.5627,179.77,179.72,2.77209635]
[1753870256462,3.02,179.76,179.75,3.22]
[1753870257663,5.5624,179.78,179.74,5.5633]
[1753870257859,8.5824,179.78,179.75,3.22]
[1753870258765,5.5624,179.78,179.75,3.22]
[1753870258967,8.582,179.79,179.76,3.22]
[1753870259462,8.5816,179.81,179.76,5.99209635]
[1753870259666,8.5816,179.81,179.77,3.22]
[1753870259970,8.5816,179.81,179.78,3.22]
[1753870260271,2.77209635,179.84,179.77,3.22]
[1753870260572,3.02,179.8,179.79,3.22]
[1753870261969,3.02,179.83,179.79,3.22]
[1753870262168,8.5802,179.85,179.82,3.22]
[1753870262369,3.02,179.87,179.82,3.22]
[1753870262563,3.02,179.87,179.83,3.22]
[1753870262766,8.5797,179.87,179.84,3.22]
[1753870263063,3.02,179.87,179.84,3.22]
[1753870263266,8.5796,179.87,179.82,8.33309635]
[1753870263470,5.5596,179.87,179.82,8.33309635]
[1753870263771,2.77209635,179.9,179.83,3.22]
[1753870263968,3.02,179.86,179.83,3.22]
[1753870264164,3.02,179.9,179.83,3.22]
[1753870264364,7.65741326,179.94,179.83,3.22]
[1753870264564,8.5794,179.88,179.84,3.22]
[1753870264874,3.02,179.87,179.84,3.22]
[1753870265176,3.02,179.87,179.85,3.22]
[1753870265472,8.5798,179.87,179.85,3.22]
[1753870265870,3.02,179.89,179.82,5.99209635]
[1753870266074,3.02,179.89,179.83,3.22]
[1753870266373,3.02,179.86,179.84,3.22]
[1753870266674,2.77209635,179.9,179.84,3.22]
[1753870266870,3.02,179.86,179.84,3.22]
[1753870267070,8.58,179.86,179.84,3.22]
[1753870267271,3.02,179.88,179.85,3.22]
[1753870267669,8.5795,179.88,179.85,3.22]
[1753870267871,3.02,179.89,179.86,3.22]
[1753870268269,5.5598,179.87,179.86,3.22]
[1753870268472,8.5798,179.87,179.86,3.22]
[1753870268772,3.02,179.87,179.81,3.22]
[1753870269069,3.02,179.84,179.81,3.22]
[1753870269277,8.5811,179.82,179.81,3.22]
[1753870269470,3.02,179.82,179.78,3.22]
[1753870269670,3.02,179.82,179.76,3.22]
[1753870270271,8.5813,179.82,179.8,3.22]
[1753870270472,2.77209635,179.83,179.8,3.22]
[1753870270773,5.562,179.8,179.76,8.7827]
[1753870270980,3.02,179.79,179.78,3.22]
[1753870271471,5.562,179.8,179.77,5.5625]
[1753870271673,8.582,179.8,179.79,3.22]
[1753870272278,8.5814,179.81,179.8,3.22]
[1753870272575,5.5614,179.81,179.8,3.22]
[1753870272774,5.5612,179.82,179.75,2.77209635]
[1753870273073,5.5612,179.82,179.72,102.22]
[1753870273074,5.5612,179.82,179.8,3.22]
[1753870273273,5.5612,179.82,179.81,3.22]
[1753870273475,8.5812,179.82,179.81,3.22]
[1753870273676,8.5812,179.82,179.77,2.77209635]
[1753870273677,5.5615,179.81,179.78,5.5622]
[1753870273878,8.5815,179.81,179.8,3.22]
[1753870274178,5.5612,179.82,179.8,3.22]
[1753870274371,8.5812,179.82,179.81,3.22]
[1753870275177,5.5609,179.83,179.81,3.22]
[1753870275378,8.5809,179.83,179.82,3.22]
[1753870276972,5.5612,179.82,179.79,5.5619]
[1753870277177,8.5812,179.82,179.81,3.22]
[1753870277575,5.79209635,179.84,179.81,3.22]
[1753870277775,5.79209635,179.84,179.78,3.22]
[1753870278082,11.35279635,179.84,179.8,5.5614]
[1753870278277,3.02,179.83,179.81,3.22]
[1753870278482,3.02,179.85,179.77,2.77209635]
[1753870278685,5.5605,179.84,179.82,3.22]
[1753870279079,3.02,179.85,179.82,3.22]
[1753870279276,2.77209635,179.88,179.81,2.77209635]
[1753870279486,3.02,179.87,179.82,3.22]
[1753870279983,3.02,179.89,179.82,3.22]
[1753870280675,8.5793,179.88,179.85,3.22]
[1753870281083,3.02,179.88,179.85,3.22]
[1753870281279,5.559,179.89,179.86,3.22]
[1753870281487,3.02,179.89,179.86,3.22]
[1753870283383,8.579,179.89,179.86,3.22]
[1753870283786,3.23,179.9,179.85,2.77209635]
[1753870284080,3.23,179.91,179.86,3.1]
[1753870284285,3.23,179.91,179.85,3.1]
[1753870284988,5.5591,179.89,179.85,8.6601]
[1753870285181,3.23,179.88,179.86,3.1]
[1753870285582,3.23,179.87,179.86,3.1]
[1753870287589,8.7895,179.87,179.86,3.1]
[1753870288089,3.23,179.87,179.86,3.1]
[1753870288791,409.79252335,179.96,179.86,3.1]
[1753870288990,3.23,179.92,179.86,3.1]
[1753870289394,8.7885,179.91,179.88,3.1]
[1753870289891,2.77209635,179.97,179.9,3.1]
[1753870290099,4.21285122,179.96,179.9,3.1]
[1753870290395,102.1,179.99,179.9,5.5583]
[1753870290396,5.5577,179.93,179.9,5.5583]
[1753870290592,8.7877,179.93,179.92,3.1]
[1753870291391,3.23,179.93,179.92,3.1]
[1753870291591,8.7875,179.94,179.93,3.1]
[1753870291803,5.5575,179.94,179.93,3.1]
[1753870292000,8.7872,179.95,179.94,3.1]
[1753870292596,5.5579,179.93,179.92,3.1]
[1753870293297,5.5574,179.94,179.9,5.5586]
[1753870293498,8.7874,179.94,179.93,3.1]
[1753870293901,5.5579,179.93,179.91,3.1]
[1753870294102,8.7879,179.93,179.92,3.1]
[1753870295606,5.5579,179.93,179.92,3.1]
[1753870295899,2.77209635,179.98,179.89,2.77209635]
[1753870295900,8.7875,179.94,179.93,3.1]
[1753870297498,3.23,179.94,179.93,3.1]
[1753870298999,8.7869,179.96,179.93,3.1]
[1753870299202,4.21597508,179.95,179.93,3.1]
[1753870299407,5.5569,179.96,179.93,3.1]
[1753870299704,4.21624372,179.95,179.93,3.1]
[1753870299909,5.5569,179.96,179.92,5.5579]
[1753870300101,3.23,179.96,179.94,3.1]
[1753870300302,5.5566,179.97,179.94,3.1]
[1753870300502,8.7862,179.98,179.94,8.6571]
[1753870300905,8.7862,179.98,179.95,3.1]
[1753870301602,5.5564,179.97,179.95,3.1]
[1753870301809,8.7864,179.97,179.96,3.1]
[1753870302008,3.23,179.94,179.9,3.1]
[1753870302202,3.23,179.94,179.91,3.1]
[1753870302706,3.23,179.94,179.88,2.77209635]
[1753870302707,8.7879,179.93,179.92,3.1]
[1753870303105,8.7879,179.93,179.89,5.5589]
[1753870303106,5.5579,179.93,179.89,8.6587]
[1753870303408,3.23,179.92,179.89,3.1]
[1753870304009,8.7882,179.92,179.89,8.6589]
[1753870304200,5.5582,179.92,179.89,5.5589]
[1753870304405,3.23,179.95,179.89,3.1]
[1753870305004,5.5578,179.93,179.89,5.5588]
[1753870305209,8.7878,179.93,179.9,3.1]
[1753870305409,2.77209635,179.97,179.89,5.5588]
[1753870305609,3.23,179.92,179.91,3.1]
[1753870308015,8.788,179.92,179.91,3.1]
[1753870308210,8.788,179.92,179.89,5.5588]
[1753870308408,6.99439034,179.91,179.86,3.1]
[1753870308711,8.7895,179.88,179.87,3.1]
[1753870308909,2.77209635,179.91,179.85,5.5601]
[1753870309109,3.23,179.87,179.86,8.6598]
[1753870309310,3.23,179.87,179.86,3.1]
[1753870310113,3.23,179.9,179.86,3.1]
[1753870310516,8.7888,179.9,179.87,5.5595]
[1753870310705,2.77209635,179.93,179.86,3.1]
[1753870311016,3.23,179.9,179.86,3.1]
[1753870311312,8.7886,179.9,179.88,3.07]
[1753870311524,3.16,179.92,179.86,3.07]
[1753870312016,8.7185,179.91,179.9,3.07]
[1753870312605,3.16,179.91,179.9,3.07]
[1753870312812,2.77209635,179.95,179.85,2.77209635]